Workbook

Sheet Izvješće o novčanom tijeku
B1: Izvješće onovčanom tijeku
B3: Početak financijske godine: | D3: (Prije) pokretanja poslovanja | E3: =UPPER(TEXT(PočetniDatumFinancijskeGodine,"mmm")) -> SIJ | F3: =UPPER(TEXT(EOMONTH(PočetniDatumFinancijskeGodine,1),"mmm")) -> VLJ | G3: =UPPER(TEXT(EOMONTH(PočetniDatumFinancijskeGodine,2),"mmm")) -> OŽU | H3: =UPPER(TEXT(EOMONTH(PočetniDatumFinancijskeGodine,3),"mmm")) -> TRA | I3: =UPPER(TEXT(EOMONTH(PočetniDatumFinancijskeGodine,4),"mmm")) -> SVI | J3: =UPPER(TEXT(EOMONTH(PočetniDatumFinancijskeGodine,5),"mmm")) -> LIP | K3: =UPPER(TEXT(EOMONTH(PočetniDatumFinancijskeGodine,6),"mmm")) -> SRP | L3: =UPPER(TEXT(EOMONTH(PočetniDatumFinancijskeGodine,7),"mmm")) -> KOL | M3: =UPPER(TEXT(EOMONTH(PočetniDatumFinancijskeGodine,8),"mmm")) -> RUJ | N3: =UPPER(TEXT(EOMONTH(PočetniDatumFinancijskeGodine,9),"mmm")) -> LIS | O3: =UPPER(TEXT(EOMONTH(PočetniDatumFinancijskeGodine,10),"mmm")) -> STU | P3: =UPPER(TEXT(EOMONTH(PočetniDatumFinancijskeGodine,11),"mmm")) -> PRO | R3: Ukupno
B4: 2012-01-05 | D4: PROCJENA | E4: =PočetniDatumFinancijskeGodine -> 2012-01-05 | F4: =EOMONTH(E4,0)+DAY(PočetniDatumFinancijskeGodine) -> 2012-02-05 | G4: =EOMONTH(F4,0)+DAY(PočetniDatumFinancijskeGodine) -> 2012-03-05 | H4: =EOMONTH(G4,0)+DAY(PočetniDatumFinancijskeGodine) -> 2012-04-05 | I4: =EOMONTH(H4,0)+DAY(PočetniDatumFinancijskeGodine) -> 2012-05-05 | J4: =EOMONTH(I4,0)+DAY(PočetniDatumFinancijskeGodine) -> 2012-06-05 | K4: =EOMONTH(J4,0)+DAY(PočetniDatumFinancijskeGodine) -> 2012-07-05 | L4: =EOMONTH(K4,0)+DAY(PočetniDatumFinancijskeGodine) -> 2012-08-05 | M4: =EOMONTH(L4,0)+DAY(PočetniDatumFinancijskeGodine) -> 2012-09-05 | N4: =EOMONTH(M4,0)+DAY(PočetniDatumFinancijskeGodine) -> 2012-10-05 | O4: =EOMONTH(N4,0)+DAY(PočetniDatumFinancijskeGodine) -> 2012-11-05 | P4: =EOMONTH(O4,0)+DAY(PočetniDatumFinancijskeGodine) -> 2012-12-05 | R4: PROCJENA za stavku
B6: Novac u blagajni (početak mjeseca) | D6: 100 | E6: =D48 -> 100 | F6: =E48 -> -125 | G6: 45 | H6: -1 | I6: 224 | J6: 269 | K6: 269 | L6: 269 | M6: 269 | N6: 269 | O6: 269 | P6: 269 | R6: =P6 -> 269
B8: Gotovinski primici
B9: Prodaja za gotovinu | E9: 125 | F9: 120 | G9: 130 | H9: 100 | R9: =SUM(GotovinskeUplate[[#This Row],[Razdoblje 0]:[Razdoblje 12]]) -> 475
B10: Naplate s tekućih računa | H10: 75 | I10: 45 | R10: =SUM(GotovinskeUplate[[#This Row],[Razdoblje 0]:[Razdoblje 12]]) -> 120
B11: Kredit/ druge uplate gotovine | E11: 50 | F11: 50 | G11: 50 | H11: 50 | R11: =SUM(GotovinskeUplate[[#This Row],[Razdoblje 0]:[Razdoblje 12]]) -> 200
B12: Ukupno | D12: =SUBTOTAL(109,GotovinskeUplate[Razdoblje 0]) -> 0 | E12: =SUBTOTAL(109,GotovinskeUplate[Razdoblje 1]) -> 175 | F12: =SUBTOTAL(109,GotovinskeUplate[Razdoblje 2]) -> 170 | G12: =SUBTOTAL(109,GotovinskeUplate[Razdoblje 3]) -> 180 | H12: =SUBTOTAL(109,GotovinskeUplate[Razdoblje 4]) -> 225 | I12: =SUBTOTAL(109,GotovinskeUplate[Razdoblje 5]) -> 45 | J12: =SUBTOTAL(109,GotovinskeUplate[Razdoblje 6]) -> 0 | K12: =SUBTOTAL(109,GotovinskeUplate[Razdoblje 7]) -> 0 | L12: =SUBTOTAL(109,GotovinskeUplate[Razdoblje 8]) -> 0 | M12: =SUBTOTAL(109,GotovinskeUplate[Razdoblje 9]) -> 0 | N12: =SUBTOTAL(109,GotovinskeUplate[Razdoblje 10]) -> 0 | O12: =SUBTOTAL(109,GotovinskeUplate[Razdoblje 11]) -> 0 | P12: =SUBTOTAL(109,GotovinskeUplate[Razdoblje 12]) -> 0 | R12: =SUBTOTAL(109,GotovinskeUplate[Ukupno]) -> 795
B13: Ukupno raspoložive gotovine (prije isplate) | D13: =D6+SUM(GotovinskeUplate[Razdoblje 0]) -> 100 | E13: =E6+SUM(GotovinskeUplate[Razdoblje 1]) -> 275 | F13: =F6+SUM(GotovinskeUplate[Razdoblje 2]) -> 45 | G13: =G6+SUM(GotovinskeUplate[Razdoblje 3]) -> 225 | H13: =H6+SUM(GotovinskeUplate[Razdoblje 4]) -> 224 | I13: =I6+SUM(GotovinskeUplate[Razdoblje 5]) -> 269 | J13: =J6+SUM(GotovinskeUplate[Razdoblje 6]) -> 269 | K13: =K6+SUM(GotovinskeUplate[Razdoblje 7]) -> 269 | L13: =L6+SUM(GotovinskeUplate[Razdoblje 8]) -> 269 | M13: =M6+SUM(GotovinskeUplate[Razdoblje 9]) -> 269 | N13: =N6+SUM(GotovinskeUplate[Razdoblje 10]) -> 269 | O13: =O6+SUM(GotovinskeUplate[Razdoblje 11]) -> 269 | P13: =P6+SUM(GotovinskeUplate[Razdoblje 12]) -> 269 | R13: =R6+SUM(GotovinskeUplate[Ukupno]) -> 1064
B15: Isplaćena gotovina
B16: Nabava (roba) | E16: 400 | G16: 226 | R16: =SUM(GotovinskaIsplata[[#This Row],[Razdoblje 0]:[Razdoblje 12]]) -> 626
B17: Nabava (navedite) | R17: =SUM(GotovinskaIsplata[[#This Row],[Razdoblje 0]:[Razdoblje 12]]) -> 0
B18: Nabava (navedite) | R18: =SUM(GotovinskaIsplata[[#This Row],[Razdoblje 0]:[Razdoblje 12]]) -> 0
B19: Bruto plaće (točan iznos isplate) | R19: =SUM(GotovinskaIsplata[[#This Row],[Razdoblje 0]:[Razdoblje 12]]) -> 0
B20: Troškovi plaće (porezi i dr.) | R20: =SUM(GotovinskaIsplata[[#This Row],[Razdoblje 0]:[Razdoblje 12]]) -> 0
B21: Vanjske usluge | R21: =SUM(GotovinskaIsplata[[#This Row],[Razdoblje 0]:[Razdoblje 12]]) -> 0
B22: Pribor (uredski i operativni) | R22: =SUM(GotovinskaIsplata[[#This Row],[Razdoblje 0]:[Razdoblje 12]]) -> 0
B23: Popravci i održavanje | R23: =SUM(GotovinskaIsplata[[#This Row],[Razdoblje 0]:[Razdoblje 12]]) -> 0
B24: Oglašavanje | R24: =SUM(GotovinskaIsplata[[#This Row],[Razdoblje 0]:[Razdoblje 12]]) -> 0
B25: Automobil, isporuke i putovanja | R25: =SUM(GotovinskaIsplata[[#This Row],[Razdoblje 0]:[Razdoblje 12]]) -> 0
B26: Računovodstvene i pravne usluge | R26: =SUM(GotovinskaIsplata[[#This Row],[Razdoblje 0]:[Razdoblje 12]]) -> 0
B27: Najamnina | R27: =SUM(GotovinskaIsplata[[#This Row],[Razdoblje 0]:[Razdoblje 12]]) -> 0
B28: Telefon | R28: =SUM(GotovinskaIsplata[[#This Row],[Razdoblje 0]:[Razdoblje 12]]) -> 0
B29: Režije | R29: =SUM(GotovinskaIsplata[[#This Row],[Razdoblje 0]:[Razdoblje 12]]) -> 0
B30: Osiguranje | R30: =SUM(GotovinskaIsplata[[#This Row],[Razdoblje 0]:[Razdoblje 12]]) -> 0
B31: Porezi (na nekretnine itd.) | R31: =SUM(GotovinskaIsplata[[#This Row],[Razdoblje 0]:[Razdoblje 12]]) -> 0
B32: Kamata | R32: =SUM(GotovinskaIsplata[[#This Row],[Razdoblje 0]:[Razdoblje 12]]) -> 0
B33: Ostali troškovi (navedite ih) | R33: =SUM(GotovinskaIsplata[[#This Row],[Razdoblje 0]:[Razdoblje 12]]) -> 0
B34: Ostalo (navedite) | R34: =SUM(GotovinskaIsplata[[#This Row],[Razdoblje 0]:[Razdoblje 12]]) -> 0
B35: Ostalo (navedite) | R35: =SUM(GotovinskaIsplata[[#This Row],[Razdoblje 0]:[Razdoblje 12]]) -> 0
B36: Razno | R36: =SUM(GotovinskaIsplata[[#This Row],[Razdoblje 0]:[Razdoblje 12]]) -> 0
B37: Ukupno | D37: =SUBTOTAL(109,GotovinskaIsplata[Razdoblje 0]) -> 0 | E37: =SUBTOTAL(109,GotovinskaIsplata[Razdoblje 1]) -> 400 | F37: =SUBTOTAL(109,GotovinskaIsplata[Razdoblje 2]) -> 0 | G37: =SUBTOTAL(109,GotovinskaIsplata[Razdoblje 3]) -> 226 | H37: =SUBTOTAL(109,GotovinskaIsplata[Razdoblje 4]) -> 0 | I37: =SUBTOTAL(109,GotovinskaIsplata[Razdoblje 5]) -> 0 | J37: =SUBTOTAL(109,GotovinskaIsplata[Razdoblje 6]) -> 0 | K37: =SUBTOTAL(109,GotovinskaIsplata[Razdoblje 7]) -> 0 | L37: =SUBTOTAL(109,GotovinskaIsplata[Razdoblje 8]) -> 0 | M37: =SUBTOTAL(109,GotovinskaIsplata[Razdoblje 9]) -> 0 | N37: =SUBTOTAL(109,GotovinskaIsplata[Razdoblje 10]) -> 0 | O37: =SUBTOTAL(109,GotovinskaIsplata[Razdoblje 11]) -> 0 | P37: =SUBTOTAL(109,GotovinskaIsplata[Razdoblje 12]) -> 0 | R37: =SUBTOTAL(109,GotovinskaIsplata[Ukupno]) -> 626
B39: Isplaćena gotovina (bez dobiti i gubitka)
B40: Otplata glavnice kredita | R40: =SUM(GotovinskaIsplata2[[#This Row],[Razdoblje 0]:[Razdoblje 12]]) -> 0
B41: Kapitalna nabava (navedite) | R41: =SUM(GotovinskaIsplata2[[#This Row],[Razdoblje 0]:[Razdoblje 12]]) -> 0
B42: Drugi troškovi pokretanja poslovanja | R42: =SUM(GotovinskaIsplata2[[#This Row],[Razdoblje 0]:[Razdoblje 12]]) -> 0
B43: Rezerva i/ili posrednički račun | R43: =SUM(GotovinskaIsplata2[[#This Row],[Razdoblje 0]:[Razdoblje 12]]) -> 0
B44: Isplate vlasnicima | R44: =SUM(GotovinskaIsplata2[[#This Row],[Razdoblje 0]:[Razdoblje 12]]) -> 0
B45: Ukupno | D45: =SUBTOTAL(109,GotovinskaIsplata2[Razdoblje 0]) -> 0 | E45: =SUBTOTAL(109,GotovinskaIsplata2[Razdoblje 1]) -> 0 | F45: =SUBTOTAL(109,GotovinskaIsplata2[Razdoblje 2]) -> 0 | G45: =SUBTOTAL(109,GotovinskaIsplata2[Razdoblje 3]) -> 0 | H45: =SUBTOTAL(109,GotovinskaIsplata2[Razdoblje 4]) -> 0 | I45: =SUBTOTAL(109,GotovinskaIsplata2[Razdoblje 5]) -> 0 | J45: =SUBTOTAL(109,GotovinskaIsplata2[Razdoblje 6]) -> 0 | K45: =SUBTOTAL(109,GotovinskaIsplata2[Razdoblje 7]) -> 0 | L45: =SUBTOTAL(109,GotovinskaIsplata2[Razdoblje 8]) -> 0 | M45: =SUBTOTAL(109,GotovinskaIsplata2[Razdoblje 9]) -> 0 | N45: =SUBTOTAL(109,GotovinskaIsplata2[Razdoblje 10]) -> 0 | O45: =SUBTOTAL(109,GotovinskaIsplata2[Razdoblje 11]) -> 0 | P45: =SUBTOTAL(109,GotovinskaIsplata2[Razdoblje 12]) -> 0 | R45: =SUBTOTAL(109,GotovinskaIsplata2[Ukupno]) -> 0
B46: Ukupna isplaćena gotovina | D46: =SUM(GotovinskaIsplata[Razdoblje 0],GotovinskaIsplata2[Razdoblje 0]) -> 0 | E46: =SUM(GotovinskaIsplata[Razdoblje 1],GotovinskaIsplata2[Razdoblje 1]) -> 400 | F46: =SUM(GotovinskaIsplata[Razdoblje 2],GotovinskaIsplata2[Razdoblje 2]) -> 0 | G46: =SUM(GotovinskaIsplata[Razdoblje 3],GotovinskaIsplata2[Razdoblje 3]) -> 226 | H46: =SUM(GotovinskaIsplata[Razdoblje 4],GotovinskaIsplata2[Razdoblje 4]) -> 0 | I46: =SUM(GotovinskaIsplata[Razdoblje 5],GotovinskaIsplata2[Razdoblje 5]) -> 0 | J46: =SUM(GotovinskaIsplata[Razdoblje 6],GotovinskaIsplata2[Razdoblje 6]) -> 0 | K46: =SUM(GotovinskaIsplata[Razdoblje 7],GotovinskaIsplata2[Razdoblje 7]) -> 0 | L46: =SUM(GotovinskaIsplata[Razdoblje 8],GotovinskaIsplata2[Razdoblje 8]) -> 0 | M46: =SUM(GotovinskaIsplata[Razdoblje 9],GotovinskaIsplata2[Razdoblje 9]) -> 0 | N46: =SUM(GotovinskaIsplata[Razdoblje 10],GotovinskaIsplata2[Razdoblje 10]) -> 0 | O46: =SUM(GotovinskaIsplata[Razdoblje 11],GotovinskaIsplata2[Razdoblje 11]) -> 0 | P46: =SUM(GotovinskaIsplata[Razdoblje 12],GotovinskaIsplata2[Razdoblje 12]) -> 0 | R46: =SUM(GotovinskaIsplata[Ukupno],GotovinskaIsplata2[Ukupno]) -> 626
B48: Novac na računu i u blagajni (na kraju mjeseca) | D48: =D13-D46 -> 100 | E48: -125 | F48: 45 | G48: -1 | H48: 224 | I48: 269 | J48: 269 | K48: 269 | L48: 269 | M48: 269 | N48: 269 | O48: 269 | P48: 269 | R48: =R13-R46 -> 438
